bitfinex/quotes_SOLUSD_20250621
["timestamp","ask_amount","ask_price","bid_price","bid_amount"]
[1750524493699,29.78,140.16,140.13,7.13623064]
[1750524494028,29.78,140.16,140.13,24.97680724]
[1750524494230,29.78,140.16,140.13,33.87649422]
[1750524494518,29.08,140.16,140.13,33.87649422]
[1750524494707,29.08,140.16,140.14,8.89968698]
[1750524495220,29.08,140.16,140.15,7.13521227]
[1750524496593,29.83,140.18,140.15,7.13521227]
[1750524497030,29.1,140.18,140.15,7.13521227]
[1750524497202,0.73,140.17,140.15,7.13521227]
[1750524498223,29.1,140.18,140.15,33.87292993]
[1750524498939,29.1,140.18,140.16,8.89968698]
[1750524499111,29.1,140.18,140.17,7.13419419]
[1750524500124,29.83,140.18,140.17,7.13419419]
[1750524501807,29.1,140.18,140.17,7.13419419]
[1750524502001,29.1,140.18,140.17,16.03388117]
[1750524502202,177.81,140.2,140.17,33.86936665]
[1750524502415,0.73,140.19,140.17,24.96967967]
[1750524503109,177.08,140.2,140.17,24.96967967]
[1750524503324,29.81,140.19,140.17,24.96967967]
[1750524503501,0.73,140.19,140.17,24.96967967]
[1750524503702,29.81,140.19,140.17,24.96967967]
[1750524503933,29.81,140.19,140.17,8.89968698]
[1750524504525,0.73,140.21,140.18,8.89968698]
[1750524504826,22.63278698,140.23,140.19,8.89968698]
[1750524504827,29.08,140.2,140.19,8.89968698]
[1750524505127,29.08,140.21,140.19,8.89968698]
[1750524505300,6.93,140.23,140.2,8.89968698]
[1750524505301,0.73,140.23,140.2,8.89968698]
[1750524505501,29.08,140.22,140.2,8.89968698]
[1750524505700,29.08,140.22,140.17,18.64964886]
[1750524505926,29.81,140.22,140.21,7.1321589]
[1750524506808,0.73,140.22,140.21,7.1321589]
[1750524508034,0.73,140.22,140.2,7.13266761]
[1750524508235,37.97968698,140.23,140.2,7.13266761]
[1750524508434,29.81,140.21,140.2,7.13266761]
[1750524509511,29.08,140.21,140.2,7.13266761]
[1750524509904,29.08,140.22,140.2,7.13266761]
[1750524510105,29.81,140.22,140.2,7.13266761]
[1750524510944,29.08,140.22,140.2,7.13266761]
[1750524511159,0.73,140.21,140.2,7.13266761]
[1750524512640,29.08,140.22,140.2,7.13266761]
[1750524512947,29.81,140.22,140.2,7.13266761]
[1750524513847,0.73,140.21,140.2,7.13266761]
[1750524515618,29.08,140.22,140.2,7.13266761]
[1750524515835,29.81,140.22,140.2,7.13266761]
[1750524516034,29.81,140.22,140.2,16.03235459]
[1750524516223,29.08,140.22,140.2,16.03235459]
[1750524516430,0.73,140.21,140.19,8.89968698]
[1750524516847,29.08,140.22,140.19,8.89968698]
[1750524517047,29.81,140.22,140.19,8.89968698]
[1750524518071,29.81,140.22,140.2,7.13266761]
[1750524518271,29.81,140.22,140.2,16.03235459]
[1750524520542,29.81,140.22,140.2,7.13266761]
[1750524520855,0.73,140.21,140.2,7.13266761]
[1750524523572,29.81,140.22,140.2,7.13266761]
[1750524526791,0.74,140.21,140.2,7.13266761]
[1750524529284,8.89968698,140.21,140.18,24.9669169]
[1750524529661,0.74,140.2,140.18,24.9669169]
[1750524529863,29.08,140.19,140.18,7.13368526]
[1750524530164,29.82,140.19,140.18,7.13368526]
[1750524530693,38.71968698,140.19,140.18,7.13368526]
[1750524532385,38.71968698,140.19,140.16,17.83654629]
[1750524532601,0.74,140.18,140.16,7.13470319]
[1750524532808,29.82,140.17,140.16,7.13470319]
[1750524533609,29.82,140.17,140.15,7.13521227]
[1750524533787,0.74,140.16,140.15,7.13521227]
[1750524534815,0.74,140.16,140.14,7.13572142]
[1750524535686,29.08,140.17,140.15,8.89968698]
[1750524535900,29.08,140.19,140.16,27.54933584]
[1750524536082,29.08,140.19,140.18,8.89968698]
[1750524536526,29.08,140.19,140.17,8.89968698]
[1750524536898,29.08,140.19,140.18,7.13368526]
[1750524540614,29.08,140.19,140.18,16.03337224]
[1750524542993,29.08,140.19,140.18,7.13368526]
[1750524543210,29.82,140.19,140.18,7.13368526]
[1750524544925,0.74,140.19,140.18,7.13368526]
[1750524546911,0.74,140.19,140.17,7.13419419]
[1750524547219,43.29213899,140.2,140.17,7.13419419]
[1750524547220,29.82,140.18,140.17,7.13419419]
[1750524547924,29.82,140.18,140.16,17.83636583]
[1750524549804,9.63968698,140.17,140.13,7.13623064]
[1750524550019,0.74,140.13,140.1,24.98120071]
[1750524550233,29.82,140.13,140.1,24.98120071]
[1750524550424,0.74,140.12,140.1,24.98120071]
[1750524551042,0.74,140.12,140.1,7.13775874]
[1750524551346,29.08,140.13,140.1,7.13775874]
[1750524551347,0.74,140.11,140.1,7.13775874]
[1750524551848,0.74,140.11,140.09,7.13826825]
[1750524553739,29.82,140.13,140.1,8.89968698]
[1750524554053,0.74,140.12,140.1,8.89968698]
[1750524554335,29.08,140.13,140.11,8.89968698]
[1750524554509,29.77,140.13,140.1,8.89968698]
[1750524554907,0.69,140.12,140.11,7.1372493]
[1750524557334,0.69,140.12,140.11,16.03693628]
[1750524557539,0.69,140.12,140.1,7.13767817]
[1750524558643,0.69,140.12,140.09,7.13826825]
[1750524558826,37.97968698,140.13,140.09,16.03795523]
[1750524559024,0.69,140.12,140.09,16.03795523]
[1750524559239,0.69,140.12,140.09,7.13826825]
[1750524559923,0.69,140.11,140.09,7.13826825]
[1750524560128,29.1,140.1,140.09,7.13826825]
[1750524560328,29.79,140.1,140.09,7.13826825]
[1750524560538,29.1,140.1,140.08,7.13877784]
[1750524560722,0.69,140.09,140.08,7.13877784]
[1750524561339,0.69,140.09,140.08,16.03846482]
[1750524561540,29.1,140.1,140.08,16.03846482]
[1750524561719,29.79,140.1,140.08,16.03846482]
[1750524561915,0.69,140.09,140.06,17.84857499]
[1750524562120,29.1,140.1,140.07,8.89968698]
[1750524562836,0.69,140.09,140.07,8.89968698]
[1750524563041,29.1,140.1,140.08,7.13877784]
[1750524563225,0.69,140.09,140.08,7.13877784]
[1750524563742,148.69,140.09,140.08,7.13877784]
[1750524563943,0.69,140.08,140.07,16.03876593]
[1750524564155,0.69,140.08,140.07,7.13907895]
[1750524565229,0.69,140.08,140.06,7.13979722]
[1750524565445,29.1,140.07,140.06,16.0394842]
[1750524567749,29.1,140.07,140.06,7.13979722]
[1750524568061,29.79,140.07,140.06,7.13979722]
[1750524569454,29.79,140.07,140.05,8.89968698]
[1750524570445,29.1,140.07,140.06,7.13979722]
[1750524570948,0.69,140.06,140.04,8.89968698]
[1750524571440,0.69,140.06,140.03,24.99464399]
[1750524571441,148.0,140.06,140.0,1.6194]
[1750524571750,0.69,140.05,140.02,7.14172922]
[1750524571960,29.83,140.04,140.02,7.14172922]
[1750524573944,29.14,140.04,140.03,8.89968698]
[1750524574148,29.14,140.06,140.03,8.89968698]
[1750524574451,0.69,140.05,140.02,24.99632142]
[1750524574633,0.69,140.03,140.02,7.14172922]
[1750524574831,26.69,140.06,140.02,24.99632142]
[1750524575021,26.69,140.06,140.04,8.89968698]
[1750524575221,29.87,140.06,140.04,8.89968698]
[1750524575855,29.18,140.06,140.05,8.89968698]
[1750524576546,29.87,140.06,140.04,8.89968698]
[1750524576928,0.69,140.06,140.05,7.14030703]
[1750524577134,29.87,140.06,140.05,7.14030703]
[1750524578550,29.18,140.06,140.05,16.03999401]
[1750524582232,148.0,140.08,140.05,33.89076159]
[1750524582431,148.0,140.08,140.07,8.89968698]
[1750524582953,148.0,140.08,140.07,16.03897447]
[1750524583936,14.3496346,140.1,140.07,33.88719321]
[1750524584159,43.5296346,140.1,140.09,8.89968698]
[1750524584362,14.3496346,140.1,140.09,8.89968698]
[1750524585157,14.3496346,140.1,140.09,16.03795523]
[1750524586944,14.3496346,140.1,140.09,7.13826825]
[1750524587152,14.3496346,140.1,140.09,16.03795523]
[1750524588257,70.2096346,140.1,140.09,7.13826825]
[1750524589348,69.5096346,140.1,140.08,16.03825349]
[1750524589562,0.7,140.09,140.07,16.03876005]
[1750524589735,29.16,140.08,140.07,16.03876005]
[1750524590036,29.86,140.08,140.07,16.03876005]
[1750524591155,29.86,140.08,140.06,8.89968698]
[1750524591664,29.86,140.08,140.05,17.85063819]
[1750524591835,29.86,140.08,140.06,8.89968698]
[1750524593953,29.86,140.08,140.07,7.13928749]
[1750524594648,29.86,140.08,140.05,8.89968698]
[1750524594854,29.16,140.08,140.04,16.04050388]
[1750524595046,0.7,140.07,140.04,16.04050388]
[1750524595240,29.86,140.06,140.04,16.04050388]
[1750524596363,0.7,140.05,140.04,16.04050388]
[1750524596942,0.7,140.05,140.04,7.1408169]
[1750524598258,29.16,140.06,140.04,16.04050388]
[1750524598438,29.16,140.06,140.05,8.89968698]
[1750524598638,29.86,140.06,140.05,8.89968698]
[1750524599457,29.16,140.06,140.05,16.03999401]
[1750524600257,29.16,140.06,140.05,7.14030703]
[1750524600459,29.16,140.06,140.05,16.03999401]
[1750524601244,29.86,140.06,140.05,7.14030703]
[1750524603250,29.16,140.06,140.03,17.85318174]
[1750524603476,29.16,140.06,140.03,26.75286872]
[1750524603477,0.7,140.05,140.03,26.75286872]
[1750524604154,29.86,140.06,140.04,8.89968698]
[1750524604641,29.86,140.06,140.05,8.89968698]
[1750524604642,29.16,140.06,140.05,8.89968698]
[1750524605338,29.86,140.06,140.05,16.03999401]
[1750524605654,29.86,140.06,140.01,19.37619756]
[1750524605851,0.7,140.05,140.03,8.89968698]
[1750524606274,177.16,140.06,140.04,8.89968698]
[1750524606865,177.86,140.06,140.04,8.89968698]
[1750524607068,177.16,140.06,140.04,8.89968698]
[1750524607270,0.7,140.05,140.04,8.89968698]
[1750524607472,0.7,140.05,140.03,8.89968698]
[1750524608058,0.7,140.05,140.04,7.1408169]
[1750524609966,0.7,140.05,140.04,16.04050388]
[1750524610478,177.16,140.06,140.04,16.04050388]
[1750524610652,177.16,140.06,140.05,8.89968698]
[1750524610653,177.86,140.06,140.05,8.89968698]
[1750524611172,177.86,140.06,140.04,16.04050388]
[1750524612175,177.16,140.06,140.05,8.89968698]
[1750524612380,148.0,140.09,140.05,8.89968698]
[1750524612569,29.14,140.08,140.07,8.89968698]
[1750524613087,29.84,140.08,140.07,7.13928749]
[1750524614190,35.16634123,140.08,140.07,7.13928749]
[1750524615160,34.46634123,140.08,140.05,7.14030703]
[1750524616059,0.7,140.07,140.05,7.14030703]
[1750524616262,29.84,140.06,140.05,7.14030703]
[1750524617562,29.14,140.06,140.05,7.14030703]
[1750524618467,29.14,140.06,140.05,8.89968698]
[1750524618985,29.14,140.08,140.05,8.89968698]
[1750524619183,29.14,140.08,140.07,8.89968698]
[1750524619393,29.84,140.08,140.07,8.89968698]
[1750524620193,0.7,140.08,140.07,8.89968698]
[1750524620395,29.84,140.08,140.07,16.03897447]
[1750524621281,29.84,140.08,140.07,7.13928749]
[1750524628806,34.47162455,140.08,140.03,24.99445238]
[1750524628982,34.47162455,140.08,140.04,8.89968698]
[1750524629384,0.7,140.07,140.04,8.89968698]
[1750524629601,29.82,140.06,140.05,7.14030703]
[1750524630115,29.12,140.06,140.05,16.03999401]
[1750524632304,29.82,140.06,140.05,7.14030703]
[1750524633589,29.12,140.06,140.04,7.14061595]
[1750524633899,0.7,140.05,140.04,7.14061595]
[1750524635896,0.7,140.05,140.02,16.04152386]
[1750524636108,182.89968698,140.07,140.02,16.04152386]
[1750524636109,0.7,140.03,140.02,16.04152386]
[1750524636412,0.7,140.03,140.02,7.14183688]
[1750524636916,0.7,140.03,140.02,16.04152386]
[1750524637689,29.12,140.04,140.02,16.04152386]
[1750524637906,29.82,140.04,140.02,16.04152386]
[1750524638914,35.15943551,140.04,140.02,16.04152386]
[1750524639125,29.82,140.04,140.02,16.04152386]
[1750524639526,29.12,140.04,140.03,8.89968698]
[1750524639726,29.12,140.04,140.02,7.14183688]
[1750524640023,29.12,140.04,140.03,8.89968698]
[1750524640394,29.12,140.04,140.02,7.14183688]
[1750524640595,29.12,140.04,140.03,8.89968698]
[1750524641025,29.12,140.04,140.03,16.04101383]
[1750524642622,29.82,140.04,140.03,16.04101383]
[1750524642928,29.82,140.04,140.03,7.14132685]
[1750524643229,29.12,140.04,140.03,7.14132685]
[1750524645521,29.12,140.04,140.03,16.04101383]
[1750524646001,29.85,140.04,140.03,7.14132685]
[1750524646200,35.18717467,140.04,140.03,7.14132685]
[1750524646525,29.85,140.04,140.03,7.14132685]
[1750524646739,35.18717467,140.04,140.03,7.14132685]
[1750524646936,29.85,140.04,140.03,7.14132685]
[1750524647229,35.18717467,140.04,140.03,7.14132685]
[1750524647402,29.85,140.04,140.03,7.14132685]
[1750524648612,35.18535576,140.04,140.03,7.14132685]
[1750524648927,29.85,140.04,140.03,7.14132685]
[1750524649111,35.18535576,140.04,140.03,7.14132685]
[1750524649425,29.85,140.04,140.03,7.14132685]
[1750524649611,35.18535576,140.04,140.03,7.14132685]
[1750524649812,29.85,140.04,140.03,7.14132685]
[1750524650012,35.18535576,140.04,140.03,7.14132685]
[1750524650327,29.85,140.04,140.03,7.14132685]
[1750524650529,35.18535576,140.04,140.03,7.14132685]
[1750524650819,29.85,140.04,140.03,7.14132685]
[1750524651024,35.18535576,140.04,140.03,7.14132685]
[1750524651231,29.85,140.04,140.03,7.14132685]
[1750524651430,35.18535576,140.04,140.03,7.14132685]
[1750524651631,29.85,140.04,140.03,7.14132685]
[1750524651807,35.18535576,140.04,140.03,7.14132685]
[1750524652006,29.85,140.04,140.03,7.14132685]
[1750524652324,35.18535576,140.04,140.03,7.14132685]
[1750524652525,29.85,140.04,140.03,7.14132685]
[1750524657535,29.12,140.04,140.03,16.04101383]
[1750524659308,5.3337997,140.06,140.03,33.89433097]
[1750524659523,29.12,140.05,140.04,8.89968698]
[1750524660111,29.12,140.05,140.03,24.99464399]
[1750524660317,29.85,140.05,140.03,24.99464399]
[1750524660524,29.85,140.05,140.04,8.89968698]
[1750524660834,29.85,140.05,140.03,33.89433097]
[1750524660835,0.73,140.04,140.03,33.89433097]
[1750524661023,29.12,140.05,140.03,33.89433097]
[1750524661426,29.85,140.05,140.03,33.89433097]
[1750524662039,8.89968698,140.04,140.03,7.14132685]
[1750524662240,26.0,140.02,140.01,1.5205069]
[1750524662439,64.74968698,140.02,140.01,1.5205069]
[1750524662637,70.08636436,140.02,140.01,1.5205069]
[1750524663026,70.08636436,140.02,140.01,8.66285387]
[1750524664526,70.08636436,140.02,140.01,1.5205069]
[1750524668345,70.08636436,140.02,140.01,8.66285387]
[1750524668530,6.63555557,140.06,140.01,17.56254085]
[1750524668735,5.33007507,140.06,140.04,8.89968698]
[1750524668933,6.06007507,140.07,140.05,8.89968698]
[1750524669148,29.14,140.06,140.02,18.64964886]
[1750524669447,29.14,140.06,140.04,8.89968698]
[1750524669755,14.3496346,140.1,140.05,8.89968698]
[1750524669923,38.03968698,140.09,140.02,18.64964886]
[1750524670129,29.87,140.08,140.04,8.89968698]
[1750524670335,0.73,140.07,140.04,8.89968698]
[1750524670532,29.14,140.06,140.05,7.14030703]
[1750524670928,29.14,140.06,140.05,16.03999401]
[1750524673331,29.14,140.06,140.05,7.14030703]
[1750524673523,0.73,140.05,140.02,7.14183688]
[1750524673747,29.12,140.04,140.02,7.14183688]
[1750524673954,29.85,140.04,140.02,7.14183688]
[1750524675734,29.12,140.04,140.02,7.14183688]
[1750524675941,29.83,140.04,140.02,7.14183688]
[1750524679187,29.12,140.04,140.02,7.14183688]
[1750524680325,29.83,140.04,140.02,7.14183688]
[1750524681529,29.83,140.04,140.02,16.04152386]
[1750524681752,29.12,140.04,140.02,16.04152386]
[1750524682550,29.12,140.04,140.02,7.14183688]
[1750524682765,29.83,140.04,140.02,16.04152386]
[1750524683262,29.83,140.04,140.02,7.14183688]
[1750524683442,29.83,140.04,140.02,16.04152386]
[1750524683443,29.12,140.04,140.02,16.04152386]
[1750524683826,29.12,140.04,140.03,8.89968698]
[1750524684873,29.12,140.04,140.02,16.04152386]
[1750524685159,0.71,140.03,140.02,7.14183688]
[1750524685365,29.83,140.04,140.02,7.14183688]
[1750524685860,29.12,140.04,140.02,16.04152386]
[1750524686161,14.94487429,140.06,140.02,33.89611606]
[1750524686162,6.04518731,140.06,140.02,33.89611606]
[1750524686361,29.12,140.05,140.03,8.89968698]
[1750524687135,29.12,140.05,140.04,8.89968698]
[1750524687659,6.22,140.09,140.04,8.89968698]
[1750524687660,6.22,140.09,140.04,16.04050388]
[1750524687857,29.83,140.08,140.05,8.89968698]
[1750524688366,0.71,140.08,140.05,8.89968698]
[1750524688541,29.12,140.07,140.06,8.89968698]
[1750524688937,0.71,140.08,140.06,8.89968698]
[1750524689256,29.12,140.07,140.06,8.89968698]
[1750524689437,0.71,140.08,140.06,8.89968698]
[1750524689635,14.3496346,140.1,140.07,8.89968698]
[1750524689840,29.12,140.09,140.08,16.03846482]
[1750524690056,29.12,140.09,140.08,7.13877784]
[1750524690441,29.12,140.09,140.08,16.03846482]
[1750524692361,14.3496346,140.1,140.08,16.03846482]
[1750524692553,43.4696346,140.1,140.09,8.89968698]
[1750524693062,0.71,140.12,140.09,8.89968698]
[1750524693268,29.12,140.1,140.09,8.89968698]
[1750524693456,29.12,140.11,140.09,8.89968698]
[1750524693634,29.12,140.11,140.1,8.89968698]
[1750524693962,29.12,140.11,140.1,16.03744572]
[1750524694668,29.12,140.11,140.1,7.13775874]
[1750524695170,15.11968698,140.14,140.1,33.88184257]
[1750524695171,6.22,140.14,140.1,33.88184257]
[1750524695340,29.12,140.13,140.12,8.89968698]
[1750524695844,29.12,140.13,140.12,7.13673993]
[1750524696165,0.71,140.15,140.12,33.87827675]
[1750524696464,29.1,140.14,140.13,8.89968698]
[1750524697070,29.12,140.14,140.13,8.89968698]
[1750524697447,29.12,140.14,140.13,16.03591762]
[1750524697847,29.83,140.15,140.13,16.03591762]
[1750524698257,29.83,140.15,140.14,8.89968698]
[1750524698781,29.83,140.15,140.14,16.0354084]
[1750524699774,29.83,140.15,140.14,7.13572142]
[1750524701565,29.12,140.15,140.14,16.0354084]
[1750524701865,29.83,140.15,140.14,7.13572142]
[1750524703145,29.83,140.15,140.13,7.13623064]
[1750524703353,0.71,140.14,140.13,7.13623064]
[1750524703551,0.71,140.14,140.13,16.03591762]
[1750524704073,29.12,140.15,140.13,16.03591762]
[1750524704270,26.0,140.18,140.14,8.89968698]
[1750524704569,26.0,140.18,140.1,41.72478024]
[1750524704570,9.61968698,140.15,140.1,7.13775874]
[1750524704875,0.72,140.13,140.11,8.89968698]
[1750524705248,0.72,140.13,140.12,7.13673993]
[1750524706548,0.72,140.13,140.11,7.1372493]
[1750524706748,0.72,140.13,140.11,16.03693628]
[1750524708960,29.1,140.14,140.11,16.03693628]
[1750524709250,29.82,140.14,140.11,16.03693628]
[1750524709964,0.72,140.13,140.11,16.03693628]
[1750524710458,0.72,140.13,140.1,26.74408383]
[1750524712078,0.72,140.13,140.11,8.89968698]
[1750524712375,29.1,140.14,140.11,8.89968698]
[1750524712576,29.1,140.14,140.12,8.89968698]
[1750524712982,29.82,140.14,140.12,8.89968698]
[1750524713881,29.12,140.13,140.12,8.89968698]
[1750524714765,29.12,140.13,140.12,16.03642691]
[1750524717589,0.72,140.15,140.12,16.03642691]
[1750524717774,29.12,140.14,140.12,16.03642691]
[1750524717974,0.72,140.16,140.13,8.89968698]
[1750524718164,29.12,140.14,140.12,24.97858977]
[1750524718364,29.12,140.14,140.13,8.89968698]
[1750524719487,29.12,140.14,140.13,16.03591762]
[1750524719699,0.72,140.16,140.13,33.87649422]
[1750524719876,0.72,140.18,140.15,8.89968698]
[1750524720198,29.82,140.17,140.15,8.89968698]
[1750524721193,0.72,140.16,140.15,8.89968698]
[1750524721386,0.72,140.16,140.14,8.89968698]
[1750524721570,0.72,140.16,140.15,7.13521227]
[1750524722568,29.1,140.16,140.15,16.03489925]
[1750524722998,0.72,140.18,140.15,16.03489925]
[1750524723198,29.1,140.17,140.15,16.03489925]
[1750524723777,6.22,140.19,140.16,8.89968698]
[1750524723975,29.82,140.19,140.18,8.89968698]
[1750524724700,29.82,140.19,140.17,8.89968698]
[1750524725709,29.82,140.19,140.18,7.13368526]
[1750524727384,15.79869617,140.2,140.18,16.03337224]
[1750524727618,15.79869617,140.2,140.19,8.89968698]
[1750524728587,29.1,140.21,140.19,8.89968698]
[1750524728788,29.1,140.21,140.2,8.89968698]
[1750524729216,0.72,140.23,140.2,8.89968698]
[1750524729503,29.1,140.22,140.21,16.03184588]
[1750524729686,29.82,140.22,140.21,7.1321589]
[1750524729894,0.72,140.2,140.16,17.83669673]
[1750524730112,29.82,140.19,140.16,26.73638371]
[1750524730609,29.82,140.19,140.17,8.89968698]
[1750524731509,29.82,140.19,140.17,16.03388117]
[1750524732721,29.1,140.19,140.17,16.03388117]
[1750524733027,0.72,140.18,140.17,16.03388117]
[1750524733185,0.72,140.18,140.17,7.13419419]
[1750524734517,0.72,140.18,140.17,8.89968698]
[1750524735516,0.72,140.18,140.17,16.03388117]
[1750524736820,0.72,140.18,140.17,7.13419419]
[1750524743711,0.72,140.18,140.15,7.13508726]
[1750524743912,148.7,140.17,140.14,7.13548939]
[1750524744104,0.7,140.15,140.13,7.13600823]
[1750524744311,29.78,140.14,140.13,7.13600823]
[1750524745709,29.78,140.14,140.11,24.97918364]
[1750524746029,29.78,140.14,140.11,33.87887062]
[1750524746927,0.7,140.13,140.11,33.87887062]
[1750524747231,0.7,140.13,140.11,24.97918364]
[1750524747527,0.7,140.13,140.11,33.87887062]
[1750524748507,29.78,140.14,140.11,33.87887062]
[1750524749148,148.7,140.16,140.13,8.89968698]
[1750524749309,29.08,140.15,140.14,8.89968698]
[1750524751223,29.08,140.15,140.14,16.0354084]
[1750524751630,29.78,140.15,140.14,7.13572142]
[1750524753228,0.7,140.14,140.12,7.13673993]
[1750524753425,29.08,140.13,140.12,7.13673993]
[1750524754436,0.7,140.15,140.12,33.87827675]
[1750524754637,29.08,140.14,140.13,8.89968698]
[1750524755351,29.08,140.14,140.13,16.03591762]
[1750524756054,148.0,140.16,140.13,16.03591762]
[1750524756222,29.8,140.15,140.13,16.03591762]
[1750524756531,0.7,140.15,140.13,16.03591762]
[1750524756737,29.8,140.15,140.13,16.03591762]
[1750524757735,29.8,140.15,140.14,8.89968698]
[1750524757736,29.1,140.15,140.14,8.89968698]
[1750524759645,177.08,140.16,140.14,16.0354084]
[1750524759940,177.08,140.16,140.15,8.89968698]
[1750524761045,148.0,140.16,140.15,8.89968698]
[1750524761614,148.0,140.16,140.15,16.03489925]
[1750524765141,148.0,140.16,140.13,24.97680724]
[1750524765346,148.0,140.16,140.15,8.89968698]
[1750524766617,148.0,140.16,140.15,16.03489925]
[1750524777637,29.81,140.18,140.15,33.87292993]
[1750524777842,29.81,140.18,140.17,8.89968698]
[1750524779554,0.73,140.22,140.18,24.96789841]
[1750524779758,0.73,140.22,140.21,8.89968698]
[1750524779935,29.81,140.22,140.21,8.89968698]
[1750524780136,0.73,140.21,140.2,8.89968698]
[1750524780332,0.73,140.21,140.19,8.89968698]
[1750524781458,0.73,140.21,140.18,24.96789841]
[1750524781660,0.73,140.21,140.15,41.87606136]
[1750524781661,29.08,140.2,140.17,8.89968698]
[1750524781847,8.89968698,140.22,140.16,7.13470319]
[1750524781848,0.73,140.18,140.16,7.13470319]
[1750524782049,29.08,140.17,140.16,7.13470319]
[1750524782357,29.81,140.17,140.16,7.13470319]
[1750524782544,29.08,140.17,140.16,16.03439017]
[1750524784360,29.81,140.17,140.16,16.03439017]
[1750524785268,29.08,140.17,140.16,16.03439017]
[1750524788279,29.81,140.19,140.16,33.87114816]
[1750524788450,29.81,140.19,140.17,8.89968698]
[1750524789545,148.73,140.24,140.18,8.89968698]
[1750524789746,0.73,140.23,140.22,8.89968698]
[1750524789954,177.81,140.24,140.22,8.89968698]
[1750524790374,148.0,140.24,140.23,16.03082867]
[1750524791070,0.73,140.26,140.23,33.8586829]
[1750524791283,6.05721272,140.27,140.25,8.89968698]
[1750524791488,177.81,140.28,140.26,8.89968698]
[1750524792462,148.73,140.28,140.27,7.12910814]
[1750524792890,148.0,140.28,140.27,16.02879512]
[1750524793177,29.81,140.3,140.27,33.85156549]
[1750524793381,29.81,140.3,140.28,8.89968698]
[1750524793683,0.73,140.3,140.29,8.89968698]
[1750524793848,148.0,140.32,140.29,8.89968698]
[1750524794186,29.81,140.33,140.31,8.89968698]
[1750524794348,29.81,140.33,140.32,16.02625482]
[1750524794550,0.73,140.33,140.32,16.02625482]
[1750524794848,29.06,140.34,140.32,16.02625482]
[1750524795058,0.71,140.35,140.33,8.89968698]
[1750524795271,29.06,140.35,140.34,8.89968698]
[1750524795585,0.71,140.36,140.34,8.89968698]
[1750524795762,0.71,140.35,140.32,33.84267443]
[1750524795957,29.79,140.35,140.33,8.89968698]
[1750524796660,29.79,140.35,140.34,16.02523921]
[1750524797186,29.79,140.36,140.34,16.02523921]
[1750524797361,29.79,140.36,140.35,8.89968698]
[1750524797760,6.6369,140.38,140.35,8.89968698]
[1750524797761,0.71,140.38,140.35,8.89968698]
[1750524797959,0.71,140.38,140.36,8.89968698]
[1750524798363,0.71,140.39,140.37,8.89968698]
[1750524798566,0.71,140.39,140.38,7.12352186]
[1750524799074,0.71,140.39,140.38,16.02320884]
[1750524799262,0.71,140.41,140.38,16.02320884]
[1750524799465,55.79,140.41,140.39,8.89968698]
[1750524799669,0.71,140.4,140.39,8.89968698]
[1750524799870,0.71,140.42,140.39,8.89968698]
[1750524800175,29.79,140.41,140.39,8.89968698]
[1750524800384,0.71,140.4,140.38,16.02320884]
[1750524800880,0.71,140.4,140.39,8.89968698]
[1750524801184,0.71,140.4,140.38,16.02320884]
[1750524801752,29.08,140.41,140.38,7.12352186]
[1750524801955,0.71,140.4,140.38,16.02320884]
[1750524803184,0.71,140.4,140.38,7.12352186]
[1750524803396,0.71,140.4,140.38,16.02320884]
[1750524803961,8.89968698,140.42,140.39,8.89968698]
[1750524803962,29.77,140.42,140.39,8.89968698]
[1750524804160,0.71,140.41,140.39,8.89968698]
[1750524805088,0.71,140.41,140.4,7.12250712]
[1750524809771,9.60968698,140.41,140.35,17.81180734]
[1750524810103,0.71,140.37,140.34,8.89968698]